bitfinex-derivatives/quotes_SOLF0:USTF0_20220101
["timestamp","ask_amount","ask_price","bid_price","bid_amount"]
[1641079835625,2.99997162,177.32,177.27,19.31616355]
[1641079836327,2.73984103,177.31,177.27,1.26444822]
[1641079839433,5.73981265,177.31,177.27,1.26444822]
[1641079840032,2.73984103,177.31,177.27,1.26444822]
[1641079840233,2.99997162,177.3,177.27,1.26444822]
[1641079841234,2.99997162,177.29,177.27,1.26444822]
[1641079841433,62.09544649,177.34,177.27,1.26444822]
[1641079841634,2.74028693,177.29,177.27,1.26444822]
[1641079842736,50.0831,177.34,177.27,1.26444822]
[1641079842737,2.99997162,177.3,177.27,1.26444822]
[1641079843736,12.01234649,177.33,177.27,1.26444822]
[1641079843937,2.99997162,177.31,177.27,1.26444822]
[1641079844137,12.01234649,177.33,177.27,1.26444822]
[1641079844540,50.0831,177.34,177.27,1.26444822]
[1641079845138,2.73688207,177.33,177.27,1.26444822]
[1641079846439,2.99997162,177.28,177.27,1.26444822]
[1641079847141,2.99997162,177.3,177.27,1.26444822]
[1641079848441,2.74045377,177.29,177.27,1.26444822]
[1641079850542,15.01231811,177.31,177.27,1.26444822]
[1641079850543,2.74045377,177.3,177.27,1.26444822]
[1641079851344,2.74045377,177.32,177.27,1.26444822]
[1641079852248,2.74045377,177.32,177.29,27.66479]
[1641079852449,2.74045377,177.33,177.29,27.66479]
[1641079853846,2.74045377,177.33,177.3,1.26444822]
[1641079859252,5.74042539,177.33,177.3,1.26444822]
[1641079859854,2.99997162,177.32,177.3,1.26444822]
[1641079860055,2.74045377,177.33,177.3,1.26444822]
[1641079860257,2.99997162,177.32,177.3,1.26444822]
[1641079860455,2.99997162,177.32,177.26,39.67534854]
[1641079860654,5.74042539,177.32,177.26,27.66479]
[1641079860855,2.74045377,177.32,177.26,27.66479]
[1641079861056,5.74042539,177.32,177.26,27.66479]
[1641079861457,4.00431852,177.29,177.27,1.26437583]
[1641079862858,4.00431852,177.3,177.27,1.26437583]
[1641079866759,2.74045377,177.35,177.27,1.26437583]
[1641079866760,4.00431852,177.31,177.27,19.31603598]
[1641079867571,4.00431852,177.31,177.27,13.27493437]
[1641079867764,2.99997162,177.28,177.27,1.26437583]
[1641079869263,7.00429014,177.28,177.27,1.26437583]
[1641079871965,2.99997162,177.28,177.27,1.26437583]
[1641079872367,4.00431852,177.29,177.27,1.26437583]
[1641079875370,4.00431852,177.29,177.27,6.55837583]
[1641079875570,4.00431852,177.3,177.27,6.55837583]
[1641079876577,7.00429014,177.31,177.28,1.26437583]
[1641079879777,27.66479,177.35,177.27,12.01055854]
[1641079880077,4.00418918,177.3,177.27,1.26438876]
[1641079880579,2.99997162,177.31,177.26,39.67534854]
[1641079880776,4.00427731,177.29,177.26,27.66479]
[1641079881576,4.00427731,177.29,177.28,5.63475517]
[1641079881777,4.00426631,177.3,177.28,11.31875517]
[1641079882279,4.00426631,177.3,177.29,27.66479]
[1641079882683,4.00373982,177.32,177.29,28.9292237]
[1641079883681,2.99997162,177.35,177.29,28.9292237]
[1641079883881,2.99997162,177.35,177.3,1.2644337]
[1641079884081,73.31849,177.39,177.3,1.2644337]
[1641079884284,2.99997162,177.31,177.3,1.2644337]
[1641079884481,2.99997162,177.31,177.29,27.66479]
[1641079884682,4.00358275,177.33,177.29,39.67534854]
[1641079885082,2.99997162,177.31,177.29,39.67534854]
[1641079885382,7.00355437,177.33,177.29,39.67534854]
[1641079885586,12.71254411,177.38,177.29,39.67534854]
[1641079885787,4.00376565,177.32,177.3,1.26443112]
[1641079886387,12.71254411,177.38,177.3,27.66479]
[1641079886388,4.00371277,177.33,177.3,27.66479]
[1641079887187,7.00368439,177.33,177.3,27.66479]
[1641079887388,4.00382621,177.32,177.31,1.26442506]
[1641079888689,4.00381212,177.33,177.3,27.66479]
[1641079889492,4.00354117,177.34,177.31,1.26445356]
[1641079890190,4.00358864,177.33,177.3,27.66479]
[1641079890993,2.99997162,177.35,177.3,27.66479]
[1641079891191,4.00377874,177.32,177.31,1.26442981]
[1641079891793,12.01133622,177.36,177.31,1.26442981]
[1641079891995,4.00369107,177.33,177.3,27.66479]
[1641079892594,12.01107321,177.37,177.31,1.26443952]
[1641079892793,2.99997162,177.36,177.31,1.26443952]
[1641079893698,2.99997162,177.36,177.3,27.66479]
[1641079893896,4.00349872,177.34,177.3,39.67534854]
[1641079894895,2.73924209,177.35,177.3,39.67534854]
[1641079895096,2.99997162,177.35,177.31,1.26446564]
[1641079895999,4.00341439,177.34,177.31,1.26446564]
[1641079897298,2.99997162,177.35,177.31,1.26446564]
[1641079897700,2.99997162,177.35,177.32,5.63364412]
[1641079897901,7.00318902,177.35,177.32,5.63364412]
[1641079898201,4.0032174,177.35,177.32,5.63364412]
[1641079898701,45.6537,177.39,177.33,1.26448668]
[1641079898903,2.99997162,177.35,177.33,1.26448668]
[1641079899405,7.00319445,177.35,177.32,5.63364412]
[1641079900104,2.99997162,177.35,177.33,1.2644857]
[1641079900703,2.99997162,177.35,177.32,5.63364412]
[1641079900902,7.00319407,177.35,177.32,5.63364412]
[1641079901304,2.99997162,177.35,177.33,1.2644853]
[1641079901504,2.99997162,177.34,177.33,1.2644853]
[1641079902305,2.99997162,177.34,177.31,12.01055854]
[1641079902605,2.99997162,177.32,177.3,39.67534854]
[1641079903103,7.00379654,177.32,177.31,1.26442519]
[1641079904204,2.99997162,177.32,177.3,27.66479]
[1641079904704,2.99997162,177.31,177.3,27.66479]
[1641079907308,5.73967976,177.31,177.3,27.66479]
[1641079908608,2.99997162,177.31,177.3,27.66479]
[1641079909611,7.00413444,177.31,177.3,27.66479]
[1641079910313,2.99997162,177.31,177.3,27.66479]
[1641079910513,5.73997915,177.31,177.3,27.66479]
[1641079911215,2.99997162,177.31,177.3,27.66479]
[1641079911419,2.99997162,177.31,177.3,20.33876148]
[1641079911618,5.99997162,177.31,177.29,27.66479]
[1641079911819,2.99997162,177.3,177.29,27.66479]
[1641079913624,2.99997162,177.3,177.22,12.01055854]
[1641079913822,2.99997162,177.25,177.22,12.01055854]
[1641079914223,14.75573546,177.3,177.22,12.01055854]
[1641079914523,2.99997162,177.26,177.22,12.01055854]
[1641079914924,7.00513735,177.26,177.22,12.01055854]
[1641079915724,4.00487503,177.27,177.24,5.63602547]
[1641079916526,4.00487503,177.27,177.24,33.30081547]
[1641079916726,7.00427473,177.3,177.26,12.01055854]
[1641079917426,2.99997162,177.3,177.26,12.01055854]
[1641079918128,7.0042476,177.3,177.26,12.01055854]
[1641079918829,2.99997162,177.3,177.26,12.01055854]
[1641079919629,7.00428171,177.3,177.26,18.05211198]
[1641079920530,2.99997162,177.3,177.26,19.31648907]
[1641079921031,3.0,177.33,177.26,19.31648907]
[1641079921232,4.00434624,177.3,177.26,19.31648907]
[1641079921634,2.99997162,177.28,177.26,19.31648907]
[1641079922833,2.21098536,177.27,177.26,19.31648907]
[1641079923833,2.21098536,177.27,177.26,13.27493563]
[1641079924033,2.21098536,177.27,177.26,1.26437709]
[1641079925636,4.95185425,177.27,177.26,1.26437709]
[1641079927738,2.21098536,177.27,177.25,27.66479]
[1641079928338,3.0,177.31,177.25,27.66479]
[1641079928539,2.21098536,177.26,177.25,27.66479]
[1641079929941,2.21098536,177.31,177.25,34.08919489]
[1641079930143,3.97368567,177.32,177.29,0.78901464]
[1641079930341,3.97368567,177.32,177.28,0.78901464]
[1641079930540,2.21098536,177.33,177.26,2.04352901]
[1641079930741,2.21098536,177.33,177.26,1.25451437]
[1641079931040,2.21098536,177.33,177.26,2.04352901]
[1641079931242,2.21098536,177.33,177.27,0.78901464]
[1641079931540,2.21098536,177.33,177.26,2.04352901]
[1641079931742,2.21098536,177.33,177.26,1.25451437]
[1641079932441,3.97368567,177.32,177.26,1.25451437]
[1641079932642,3.97368567,177.32,177.28,39.67534854]
[1641079933142,3.97368567,177.32,177.29,1.25451437]
[1641079934547,3.97368567,177.32,177.29,2.04352901]
[1641079935145,3.97368567,177.33,177.31,0.78901464]
[1641079935346,3.97368567,177.33,177.32,0.78901464]
[1641079935747,3.97368567,177.33,177.3,6.88879332]
[1641079936345,2.21098536,177.35,177.32,1.25451437]
[1641079936548,3.97368567,177.36,177.32,1.25451437]
[1641079936846,2.21098536,177.34,177.32,1.25451437]
[1641079937350,6.18467103,177.34,177.31,1.25451437]
[1641079937847,3.97368567,177.34,177.31,1.25451437]
[1641079939748,3.97368567,177.33,177.31,1.25451437]
[1641079946758,3.97368567,177.37,177.3,5.63427895]
[1641079947558,2.21098536,177.36,177.3,6.42329359]
[1641079947759,2.21098536,177.35,177.3,5.63427895]
[1641079948358,2.21098536,177.36,177.32,0.78901464]
[1641079948758,2.21098536,177.36,177.32,27.66479]
[1641079951164,47.0827,177.39,177.32,28.45380464]
[1641079951363,47.0827,177.39,177.34,5.63285079]
[1641079951364,2.21098536,177.37,177.34,5.63285079]
[1641079951565,33.84946103,177.4,177.36,0.78901464]
[1641079951764,3.0,177.51,177.39,3.0]
[1641079951963,3.97828176,177.41,177.39,8.63031361]
[1641079952162,7.97484528,177.45,177.4,7.0]
[1641079952362,32.00828815,177.49,177.41,3.0]
[1641079952563,32.00828815,177.49,177.4,7.0]
[1641079952763,3.0,177.55,177.41,4.25833513]
[1641079952964,3.0,177.55,177.44,3.0]
[1641079952965,27.66479,177.55,177.44,3.0]
[1641079953166,27.66479,177.55,177.45,3.0]
[1641079953364,27.66479,177.55,177.43,34.66479]
[1641079953565,27.66479,177.55,177.43,27.66479]
[1641079953770,2.71724659,177.54,177.43,27.66479]
[1641079955966,2.71724659,177.54,177.47,5.62888745]
[1641079956368,2.71724659,177.54,177.47,11.93288745]
[1641079958271,12.67680115,177.54,177.48,1.26571379]
[1641079966675,12.67680115,177.54,177.47,5.62888745]
[1641079968780,16.91680115,177.54,177.47,5.62888745]
[1641079968981,7.24,177.54,177.46,27.66479]
[1641079970584,3.0,177.53,177.46,27.66479]
[1641079971188,4.24,177.54,177.46,27.66479]
[1641079972889,30.66479,177.55,177.46,27.66479]
[1641079973789,27.66479,177.55,177.46,27.66479]
[1641079977094,12.69150706,177.54,177.47,1.26668973]
[1641079980094,3.0,177.53,177.47,1.26668973]
[1641079980793,34.74222213,177.52,177.46,27.66479]
[1641079982995,12.00342619,177.48,177.46,27.66479]
[1641079983197,12.00342619,177.48,177.46,21.2629627]
[1641079988605,12.00342619,177.48,177.43,5.62999662]
[1641079989603,12.00342619,177.48,177.44,1.26703287]
[1641079990001,12.00342619,177.48,177.45,27.66479]
[1641079990804,12.00342619,177.51,177.46,1.26703287]
[1641079992405,14.73736017,177.52,177.46,1.26703287]
[1641079992606,14.73736017,177.52,177.47,8.62872903]
[1641079992807,14.73736017,177.52,177.48,3.0]
[1641079993005,14.73736017,177.52,177.47,8.62872903]
[1641079993206,12.00342619,177.53,177.48,1.26703287]
[1641079993609,9.69238909,177.56,177.49,7.0]
[1641079994209,9.69238909,177.56,177.51,27.66479]
[1641079995508,45.6791,177.59,177.51,27.66479]
[1641079998616,59.67307815,177.6,177.51,27.66479]
[1641080004518,62.67307815,177.6,177.51,27.66479]
[1641080005017,59.67307815,177.6,177.51,27.66479]
[1641080006221,32.00828815,177.6,177.51,27.66479]
[1641080008521,32.00828815,177.6,177.5,8.28]
[1641080009124,32.00828815,177.6,177.52,27.66479]
[1641080012024,3.0,177.59,177.52,27.66479]
[1641080012224,3.0,177.58,177.52,27.66479]
[1641080012425,32.00828815,177.6,177.52,27.66479]
[1641080012625,3.0,177.59,177.52,27.66479]
[1641080013125,32.00828815,177.58,177.52,27.66479]
[1641080014527,35.00828815,177.58,177.52,27.66479]
[1641080015533,32.00828815,177.57,177.52,27.66479]
[1641080016134,3.0,177.55,177.52,27.66479]
[1641080016335,3.0,177.54,177.52,27.66479]
[1641080016538,3.0,177.55,177.52,27.66479]
[1641080017338,32.00828815,177.55,177.52,27.66479]
[1641080018140,3.0,177.56,177.52,27.66479]
[1641080018639,3.0,177.56,177.5,8.28]
[1641080019540,3.0,177.56,177.54,27.66479]
[1641080020239,3.0,177.56,177.5,8.28]
[1641080020640,32.00828815,177.58,177.5,8.28]
[1641080021544,32.00828815,177.58,177.54,27.66479]
[1641080022144,35.00828815,177.59,177.54,27.66479]
[1641080023644,35.00828815,177.59,177.54,34.27279]
[1641080024050,11.99885768,177.55,177.54,34.27279]
[1641080025346,11.99885768,177.56,177.54,34.27279]
[1641080026448,32.00828815,177.6,177.54,27.66479]
[1641080026449,11.99885768,177.57,177.54,27.66479]
[1641080027947,11.99885768,177.56,177.54,27.66479]
[1641080028950,11.99885768,177.57,177.54,27.66479]
[1641080030652,11.99885768,177.56,177.54,27.66479]
[1641080031352,11.99885768,177.56,177.5,8.28]
[1641080031952,11.99885768,177.56,177.54,27.66479]
[1641080032856,11.99885768,177.56,177.5,8.28]
[1641080034059,11.99885768,177.56,177.54,27.66479]
[1641080034459,11.99885768,177.55,177.54,27.66479]
[1641080035059,2.72923176,177.58,177.54,27.66479]
[1641080035259,34.73751991,177.58,177.54,27.66479]
[1641080035460,37.73751991,177.58,177.54,27.66479]
[1641080036163,34.73751991,177.58,177.54,27.66479]
[1641080036365,37.73751991,177.58,177.54,27.66479]
[1641080036566,11.98904778,177.55,177.54,27.66479]
[1641080038666,11.98904778,177.55,177.51,27.66479]
[1641080038667,11.98904778,177.55,177.5,8.28]
[1641080039467,11.98904778,177.55,177.51,1.26812091]
[1641080040171,11.98904778,177.54,177.5,8.28]
[1641080040369,11.98904778,177.54,177.53,27.66479]
[1641080041967,11.98904778,177.54,177.5,8.28]
[1641080042670,11.98904778,177.54,177.53,27.66479]
[1641080043869,14.72819209,177.55,177.53,27.66479]
[1641080044072,14.72819209,177.55,177.53,21.26534449]
[1641080044571,11.99896033,177.55,177.5,8.28]
[1641080045372,11.99896033,177.54,177.53,27.66479]
[1641080046277,11.99896033,177.54,177.5,8.28]
[1641080046777,11.99896033,177.55,177.51,1.26812842]
[1641080048788,3.99250023,177.52,177.5,8.28]
[1641080048983,3.99250023,177.52,177.51,27.66479]
[1641080050888,5.84546033,177.56,177.51,36.29209368]
[1641080051086,32.00828815,177.6,177.55,3.0]
[1641080051287,9.93503531,177.61,177.55,3.0]
[1641080051787,9.93503531,177.61,177.54,3.0]
[1641080052088,32.00828815,177.62,177.54,3.0]
[1641080052489,32.00828815,177.68,177.54,3.0]
[1641080052688,32.00828815,177.68,177.54,52.1942]
[1641080052889,6.786,177.65,177.58,27.66479]
[1641080054490,27.66479,177.68,177.58,27.66479]
[1641080058593,75.13839,177.68,177.58,27.66479]
[1641080059593,107.14667815,177.68,177.58,27.66479]
[1641080060393,107.14667815,177.68,177.6,5.62461331]
[1641080062999,110.14667815,177.68,177.6,5.62461331]
[1641080063201,78.13839,177.68,177.6,5.62461331]
[1641080065603,78.13839,177.68,177.59,46.7382]
[1641080066405,75.13839,177.68,177.59,46.7382]
[1641080066706,107.14667815,177.68,177.59,46.7382]
[1641080069208,110.14667815,177.68,177.59,46.7382]
[1641080069409,3.0,177.67,177.59,46.7382]
[1641080069609,110.14667815,177.68,177.59,46.7382]
[1641080070110,78.13839,177.68,177.59,46.7382]
[1641080070512,50.4736,177.68,177.59,46.7382]
[1641080070712,47.4736,177.68,177.59,46.7382]
[1641080071013,47.4736,177.68,177.6,27.66479]
[1641080072812,47.4736,177.68,177.61,5.62429696]
[1641080073716,50.4736,177.68,177.61,5.62429696]
[1641080074016,47.4736,177.68,177.61,5.62429696]
[1641080075120,50.4736,177.68,177.61,5.62429696]
[1641080075820,3.0,177.67,177.6,27.66479]
[1641080076824,8.042,177.67,177.59,46.7382]
[1641080077024,5.042,177.67,177.59,46.7382]
[1641080077623,5.042,177.67,177.6,27.66479]
[1641080078024,8.042,177.67,177.6,27.66479]
[1641080078225,3.0,177.64,177.6,27.66479]
[1641080078424,3.0,177.63,177.6,14.98442874]
[1641080078825,3.0,177.64,177.6,14.98442874]
[1641080079027,3.0,177.65,177.6,14.98442874]
[1641080080129,3.0,177.66,177.6,14.98442874]
[1641080081731,11.99367376,177.63,177.6,14.98442874]
[1641080083235,11.99367376,177.64,177.6,14.98442874]
[1641080084237,11.99367376,177.63,177.6,20.60888387]
[1641080084736,7.376e-05,177.63,177.6,23.60888387]
[1641080084937,7.376e-05,177.63,177.6,20.60888387]
[1641080085139,7.376e-05,177.68,177.6,38.65537167]
[1641080085539,7.376e-05,177.68,177.6,41.65537167]
[1641080086139,7.376e-05,177.68,177.6,29.66169791]
[1641080086339,27.66479,177.69,177.6,26.66169791]
[1641080086841,9.93378692,177.7,177.6,26.66169791]
[1641080087240,51.6848,177.71,177.6,26.66169791]
[1641080087440,48.6848,177.71,177.6,26.66169791]
[1641080087840,9.93414613,177.7,177.6,26.66169791]
[1641080089644,48.6848,177.71,177.6,20.60888387]
[1641080091645,48.6848,177.71,177.61,1.26371247]
[1641080092146,48.6848,177.71,177.64,27.66479]
[1641080093845,48.6848,177.71,177.65,5.62303194]
[1641080094046,27.66479,177.72,177.65,5.62303194]
[1641080094847,2.70868341,177.71,177.65,5.62303194]
[1641080096447,2.70868341,177.71,177.64,27.66479]
[1641080100054,12.64133643,177.71,177.64,27.66479]
[1641080100553,12.64133643,177.71,177.61,14.26429696]
[1641080100953,12.64133643,177.71,177.65,1.27137465]
[1641080101455,72.31441458,177.73,177.64,27.66479]
[1641080102253,72.31441458,177.73,177.65,1.27137465]
[1641080102455,12.64133643,177.72,177.65,1.27137465]
[1641080103056,12.64133643,177.72,177.61,14.26429696]
[1641080103057,32.00828815,177.72,177.62,1.27137465]
[1641080103257,32.00828815,177.72,177.64,27.66479]
[1641080103859,44.64962458,177.72,177.64,27.66479]
[1641080104559,44.64962458,177.72,177.64,21.26994208]
[1641080106061,12.64133643,177.72,177.65,1.27136875]
[1641080111671,12.64133643,177.72,177.64,21.26994208]
[1641080112574,3.99472536,177.65,177.64,21.26994208]
[1641080112773,3.99472536,177.65,177.61,14.26429696]
[1641080113174,3.99472536,177.64,177.62,1.27111558]
[1641080113373,3.99472536,177.64,177.63,27.66479]
[1641080114175,3.99472536,177.64,177.63,28.93590558]
[1641080116982,3.99472536,177.65,177.63,28.93590558]
[1641080117381,3.99472536,177.65,177.64,5.62334814]
[1641080117882,3.99472536,177.65,177.64,6.89446372]
[1641080118681,3.99472536,177.67,177.64,6.89446372]
[1641080119484,3.99472536,177.67,177.65,1.27111558]
[1641080120985,3.99472536,177.68,177.65,1.27111558]
[1641080121788,3.99472536,177.67,177.65,1.27111558]
[1641080123686,14.69373016,177.71,177.66,12.62208354]
[1641080124487,14.69373016,177.71,177.66,9.62208354]
[1641080124688,11.98504675,177.71,177.67,1.27111558]
[1641080124886,2.70868341,177.74,177.67,1.27111558]
[1641080124887,14.69373016,177.74,177.67,1.27111558]
[1641080125490,14.69373016,177.74,177.67,28.93590558]
[1641080125891,11.98504675,177.73,177.67,28.93590558]
[1641080126997,14.69373016,177.74,177.68,1.27111558]
[1641080127894,2.70868341,177.74,177.68,1.27111558]
[1641080128498,14.69373016,177.74,177.68,1.27111558]
[1641080129299,11.98504675,177.73,177.68,1.27111558]
[1641080133002,2.70868341,177.75,177.67,33.28703159]
[1641080133203,2.70868341,177.75,177.67,5.62224159]
[1641080133702,11.98504675,177.77,177.67,5.62224159]
[1641080133903,11.98504675,177.77,177.68,49.3047]
[1641080134502,27.66479,177.76,177.68,49.3047]
[1641080135102,2.70868341,177.75,177.68,49.3047]
[1641080141411,14.69373016,177.75,177.69,1.27214464]
[1641080142113,11.98504675,177.75,177.69,1.27214464]
[1641080143115,11.98504675,177.76,177.69,1.27214464]
[1641080143515,39.64983675,177.76,177.69,1.27214464]
[1641080143716,11.98504675,177.75,177.69,1.27214464]
[1641080144418,19.42173016,177.75,177.69,1.27214464]
[1641080145019,3.0,177.73,177.69,1.27214464]
[1641080145421,11.98504675,177.71,177.63,19.31346858]
[1641080145621,39.64983675,177.71,177.63,19.31346858]
[1641080146320,14.69373016,177.7,177.62,19.31346858]
[1641080150123,14.69373016,177.7,177.62,1.27214464]
[1641080150326,11.98504675,177.69,177.64,5.62334814]
[1641080151025,2.70868341,177.7,177.65,1.27214464]
[1641080153531,2.70868341,177.72,177.65,13.25719139]
[1641080153731,2.70868341,177.72,177.65,40.92198139]
[1641080153933,2.70868341,177.72,177.65,43.92198139]
[1641080154332,2.70868341,177.72,177.68,5.62192551]
[1641080155535,2.70868341,177.74,177.69,1.27214464]
[1641080158336,14.69373016,177.74,177.69,1.27214464]
[1641080159436,14.69373016,177.74,177.67,1.27214464]
[1641080159635,2.70868341,177.74,177.68,5.62192551]
[1641080160536,2.70868341,177.74,177.69,1.27214464]
[1641080162038,2.70868341,177.75,177.69,1.27214464]
[1641080163442,2.70868341,177.75,177.69,13.25719139]
[1641080164040,2.70868341,177.75,177.69,19.31006492]
[1641080165942,2.70868341,177.75,177.69,46.97485492]
[1641080166140,27.66479,177.76,177.69,46.97485492]
[1641080166342,27.66479,177.76,177.7,11.98504675]
[1641080167041,2.72264748,177.75,177.7,1.27214464]
[1641080167948,27.66479,177.76,177.7,13.25719139]
[1641080168147,27.66479,177.76,177.7,19.31291545]
[1641080168649,2.72260169,177.75,177.7,1.27214464]
[1641080169449,27.66479,177.76,177.7,1.27214464]
[1641080169650,11.98431802,177.78,177.72,8.62066155]
[1641080169851,11.98431802,177.78,177.73,3.0]
[1641080170052,11.98431802,177.78,177.73,30.66479]
[1641080170252,11.98431802,177.8,177.73,28.93693464]
[1641080170452,11.98431802,177.8,177.73,80.42713464]
[1641080170652,11.98431802,177.8,177.73,83.42713464]
[1641080171454,11.98431802,177.8,177.77,5.61924028]
[1641080171654,81.88093677,177.83,177.77,5.61924028]
[1641080171852,2.72204677,177.8,177.77,5.61924028]
[1641080173157,2.72149908,177.82,177.77,5.61924028]
[1641080173355,2.72149908,177.82,177.73,113.61699786]
[1641080173554,2.72149908,177.82,177.73,91.14003675]
[1641080173757,14.70280835,177.82,177.78,1.27230364]
[1641080174355,14.70280835,177.82,177.74,18.04036964]
[1641080174356,14.70280835,177.82,177.75,5.61955606]
[1641080175056,14.70280835,177.82,177.76,1.27230364]
[1641080177560,14.70280835,177.82,177.78,5.61860883]
[1641080178563,14.70280835,177.84,177.79,1.27230364]
[1641080178861,14.70280835,177.84,177.8,27.66479]
[1641080180759,2.72149908,177.84,177.81,1.27274116]
[1641080181660,14.70280835,177.84,177.8,27.66479]
[1641080181859,17.70280835,177.84,177.8,27.66479]
[1641080182059,14.70280835,177.84,177.8,27.66479]
[1641080182659,2.72149908,177.83,177.8,27.66479]
[1641080183259,11.98130927,177.84,177.8,27.66479]
[1641080184660,3.9931202,177.81,177.8,27.66479]
[1641080185359,3.9931202,177.83,177.8,27.66479]
[1641080186060,3.9931202,177.82,177.8,27.66479]
[1641080187161,3.9931202,177.83,177.8,27.66479]
[1641080190265,0.0131202,177.83,177.8,27.66479]
[1641080190464,0.0131202,177.83,177.8,33.28260972]
[1641080190964,0.0131202,177.83,177.81,27.66479]
[1641080191176,2.7195232,177.87,177.81,27.66479]
[1641080192565,14.70083247,177.87,177.81,27.66479]
[1641080193066,17.70083247,177.87,177.81,27.66479]
[1641080193267,3.0,177.85,177.81,27.66479]
[1641080193969,14.70083247,177.84,177.81,27.66479]
[1641080194770,2.7195232,177.84,177.81,27.66479]
[1641080195570,11.98130927,177.83,177.81,27.66479]
[1641080195972,11.98130927,177.83,177.81,22.83769]
[1641080196375,14.70083247,177.83,177.81,22.83769]
[1641080197374,11.98130927,177.83,177.81,22.83769]
[1641080197978,11.98130927,177.83,177.78,5.61860883]
[1641080199781,2.7195232,177.83,177.78,5.61860883]
[1641080200580,2.7195232,177.83,177.79,1.27294091]
[1641080201982,14.70083247,177.84,177.79,1.27294091]
[1641080202780,17.70083247,177.84,177.79,1.27294091]
[1641080202980,14.70083247,177.84,177.79,1.27294091]
[1641080203381,3.0,177.82,177.79,1.27294091]
[1641080203580,2.7195232,177.83,177.79,1.27294091]
[1641080204082,2.7195232,177.81,177.79,1.27294091]
[1641080204682,2.7195232,177.84,177.79,1.27294091]
[1641080205084,30.3843132,177.84,177.79,1.27294091]
[1641080205681,30.3843132,177.84,177.78,1.27294091]
[1641080206283,2.7195232,177.83,177.78,1.27294091]
[1641080207788,14.70083247,177.84,177.78,1.27294091]
[1641080208587,11.98130927,177.83,177.78,1.27294091]
[1641080208987,11.98130927,177.83,177.82,5.61734637]
[1641080209187,11.98130927,177.83,177.82,33.28213637]
[1641080209988,14.70083247,177.87,177.82,34.55507728]
[1641080210390,14.70083247,177.87,177.82,40.61907728]
[1641080210987,11.98130927,177.89,177.83,1.27294091]
[1641080211195,11.98130927,177.89,177.83,52.64014091]
[1641080211688,11.98130927,177.89,177.84,1.27294091]
[1641080213591,14.70083247,177.89,177.84,1.27294091]
[1641080214291,11.98130927,177.89,177.84,1.27294091]
[1641080215995,11.98130927,177.89,177.83,1.27294091]
[1641080215996,11.98130927,177.88,177.83,1.27294091]
[1641080218494,11.98130927,177.87,177.83,1.27294091]
[1641080219395,11.98130927,177.88,177.83,1.27294091]
[1641080220900,14.98130927,177.88,177.83,1.27294091]
[1641080221200,11.98130927,177.88,177.83,1.27294091]
[1641080221398,2.7195232,177.87,177.83,1.27294091]
[1641080222301,11.98130927,177.88,177.83,1.27294091]
[1641080223507,11.98130927,177.88,177.82,33.72879]
[1641080223703,2.7195232,177.89,177.82,33.72879]
[1641080223704,14.70083247,177.89,177.82,33.72879]
[1641080224508,2.7195232,177.9,177.83,1.26914312]
[1641080225408,14.70083247,177.9,177.83,1.26914312]
[1641080226710,14.70083247,177.9,177.83,4.26914312]
[1641080226909,14.70083247,177.9,177.85,5.61639989]
[1641080227109,2.7195232,177.9,177.85,5.61639989]
[1641080227911,2.7195232,177.9,177.86,1.26914312]
[1641080229813,2.7195232,177.9,177.84,1.26914312]
[1641080230614,2.7195232,177.9,177.83,1.26914312]
[1641080233216,27.66479,177.91,177.83,1.26914312]
[1641080234217,21.27812107,177.91,177.83,1.26914312]
[1641080235129,2.71044962,177.9,177.83,1.26914312]
[1641080235727,2.71044962,177.9,177.85,27.66479]
[1641080236527,2.71044962,177.92,177.85,27.66479]
[1641080239627,2.71044962,177.92,177.86,1.2692481]
[1641080240528,3.0,177.9,177.82,33.2819786]
[1641080241128,5.71044962,177.89,177.83,1.26880186]
[1641080241328,3.0,177.88,177.83,1.26880186]
[1641080241529,3.0,177.87,177.83,1.26880186]
[1641080241927,30.37523962,177.89,177.82,5.6171886]
[1641080242129,2.71044962,177.87,177.82,5.6171886]
[1641080242728,2.71044962,177.88,177.82,5.6171886]
[1641080243329,3.0,177.85,177.82,5.6171886]
[1641080243629,2.71044962,177.88,177.82,5.6171886]
[1641080243833,3.0,177.85,177.82,5.6171886]
[1641080244034,3.0,177.84,177.77,17.60397129]
[1641080244233,2.71044962,177.88,177.77,17.60397129]
[1641080244432,5.71044962,177.88,177.77,17.60397129]
[1641080244632,2.71044962,177.88,177.77,17.60397129]
[1641080245034,5.71044962,177.88,177.77,17.60397129]
[1641080245232,2.71044962,177.88,177.77,17.60397129]
[1641080245637,27.66479,177.85,177.78,1.26870199]
[1641080247638,11.98130927,177.88,177.78,1.26870199]
[1641080248440,87.85439927,177.89,177.81,5.61766193]